bitfinex-derivatives/quotes_ETHF0:USTF0_20241020
["timestamp","ask_amount","ask_price","bid_price","bid_amount"]
[1729442296440,0.5041,2702.2,2702.0,0.4981]
[1729442296643,0.5041,2702.2,2702.1,0.37017]
[1729442297847,0.5041,2702.2,2702.0,0.4981]
[1729442298347,0.5041,2702.2,2702.1,0.37017]
[1729442298939,0.5041,2702.2,2702.0,0.86828]
[1729442303744,0.5041,2702.2,2702.0,0.4981]
[1729442304046,0.5041,2702.2,2702.0,0.86828]
[1729442304944,0.87426,2702.2,2702.0,0.4981]
[1729442305150,0.87426,2702.2,2701.9,0.89759]
[1729442305448,0.87426,2702.2,2702.0,0.11578075]
[1729442305747,0.87426,2702.2,2701.9,0.89759]
[1729442306152,0.5041,2702.2,2702.0,0.1157808]
[1729442306452,0.5041,2702.2,2701.9,0.89759]
[1729442306849,0.5041,2702.2,2702.0,0.11578024]
[1729442307053,0.87426,2702.2,2701.9,0.89759]
[1729442307355,0.5041,2702.2,2701.9,0.89759]
[1729442307553,0.87426,2702.2,2701.9,0.89759]
[1729442307956,0.5041,2702.2,2701.9,0.89759]
[1729442308254,0.5041,2702.2,2701.8,3.57801]
[1729442308456,2.4174586,2701.9,2701.8,3.2078]
[1729442308653,2.41741515,2701.9,2701.8,3.2078]
[1729442308852,1.5737,2701.9,2701.8,3.2078]
[1729442310049,1.9439,2701.9,2701.8,3.2078]
[1729442311747,1.5737,2701.9,2701.6,3.2078]
[1729442311951,0.37021,2701.8,2701.6,3.2078]
[1729442312255,0.37021,2701.8,2701.4,0.86686]
[1729442312256,0.787,2701.8,2701.4,0.86686]
[1729442312455,0.787,2701.8,2701.1,0.5089]
[1729442312753,0.37025,2701.6,2701.3,0.37028]
[1729442312955,1.40585,2701.5,2701.2,0.37028]
[1729442313159,0.37027,2701.4,2701.1,0.3703]
[1729442313558,1.92126,2701.5,2701.2,0.37028]
[1729442315252,1.92126,2701.5,2701.1,0.3703]
[1729442315750,0.37027,2701.4,2701.0,0.37032]
[1729442316545,0.37028,2701.3,2701.0,0.37032]
[1729442316747,0.37028,2701.3,2700.9,4.2208]
[1729442316748,0.37028,2701.3,2700.9,4.59113]
[1729442316949,0.5095,2701.2,2700.9,4.59113]
[1729442317154,0.5095,2701.2,2701.0,0.37032]
[1729442318353,0.5095,2701.2,2700.9,4.2208]
[1729442318354,0.5095,2701.2,2700.9,4.59113]
[1729442318553,1.0393,2701.1,2700.9,4.59113]
[1729442318748,1.0393,2701.1,2700.9,3.2078]
[1729442318956,1.40961,2701.1,2700.9,3.2078]
[1729442319351,1.0393,2701.1,2700.9,3.2078]
[1729442319956,1.40961,2701.1,2700.9,3.2078]
[1729442321261,0.37032,2701.0,2700.9,3.2078]
[1729442321761,1.0393,2701.1,2700.9,3.2078]
[1729442321963,1.40962,2701.1,2700.9,3.2078]
[1729442322160,0.37032,2701.0,2700.9,3.2078]
[1729442323262,1.0393,2701.1,2700.5,0.37038]
[1729442323462,0.37034,2700.9,2700.5,0.37038]
[1729442323668,0.787,2700.8,2700.3,4.7406]
[1729442323967,1.3199,2700.8,2700.6,0.37037]
[1729442326665,1.3199,2700.8,2700.3,4.7406]
[1729442326973,1.3199,2700.8,2700.6,0.37037]
[1729442327463,1.3199,2700.8,2700.3,4.7406]
[1729442327464,0.5329,2700.8,2700.3,4.7406]
[1729442327666,1.3209,2700.8,2700.7,0.37036]
[1729442329864,1.0393,2701.1,2700.8,0.37035]
[1729442330175,1.3109,2701.0,2700.8,0.37035]
[1729442330362,1.3109,2701.0,2700.9,1.0118]
[1729442332772,1.3109,2701.0,2700.9,1.38213]
[1729442333068,0.55513468,2701.3,2700.9,1.0118]
[1729442333282,0.5108,2701.4,2701.2,0.37029]
[1729442333572,1.2988,2701.4,2701.3,0.5064]
[1729442334268,1.2988,2701.4,2701.3,1.38758]
[1729442334269,0.788,2701.4,2701.3,1.38758]
[1729442336872,0.788,2701.4,2701.3,4.2251]
[1729442337060,0.788,2701.4,2701.3,4.59534]
[1729442338074,0.788,2701.4,2701.3,4.2251]
[1729442338573,0.788,2701.4,2701.3,4.59534]
[1729442339174,0.788,2701.4,2701.3,1.38754]
[1729442339367,0.788,2701.4,2701.3,4.59534]
[1729442339768,0.788,2701.4,2701.3,4.2251]
[1729442341374,0.788,2701.4,2701.3,1.0173]
[1729442341878,0.788,2701.4,2701.3,1.38754]
[1729442342380,0.788,2701.4,2701.3,4.2251]
[1729442343173,1.1572,2701.6,2701.3,4.2251]
[1729442343475,1.1572,2701.6,2701.3,4.59534]
[1729442343476,0.787,2701.6,2701.3,4.59534]
[1729442343683,1.1572,2701.6,2701.3,4.59534]
[1729442343978,0.787,2701.6,2701.3,4.2251]
[1729442344163,0.787,2701.6,2701.3,4.59534]
[1729442344570,1.15721,2701.6,2701.3,4.2251]
[1729442347077,1.15721,2701.6,2701.3,1.0173]
[1729442347478,0.37026,2701.2,2700.9,3.2078]
[1729442347680,0.5067,2701.1,2700.9,3.2078]
[1729442349175,0.87697,2701.1,2700.9,3.2078]
[1729442350175,0.37028,2701.0,2700.9,3.2078]
[1729442350880,1.35808,2701.0,2700.9,3.2078]
[1729442353489,1.35808,2701.0,2700.7,3.2078]
[1729442353784,0.37031,2700.9,2700.7,3.2078]
[1729442354577,0.9878,2701.0,2700.7,3.2078]
[1729442355087,0.37031,2700.8,2700.7,3.2078]
[1729442357478,0.9878,2701.0,2700.7,3.2078]
[1729442357688,0.37031,2700.9,2700.7,3.2078]
[1729442357980,0.37031,2700.9,2700.5,0.96592843]
[1729442358185,0.9878,2701.0,2700.3,1.44889265]
[1729442358186,0.37033,2700.7,2700.4,0.37036]
[1729442358388,0.37033,2700.7,2700.4,1.33628843]
[1729442358389,0.4976,2700.6,2700.4,1.33628843]
[1729442358590,0.9914,2700.6,2700.5,0.11584086]
[1729442360178,0.9914,2700.6,2700.4,0.37036]
[1729442361383,1.36174,2700.6,2700.4,0.37036]
[1729442361990,0.9914,2700.6,2700.4,0.37036]
[1729442362195,0.86414,2700.6,2700.4,0.37036]
[1729442363189,0.4938,2700.6,2700.4,0.37036]
[1729442363986,0.4938,2700.6,2700.5,3.2078]
[1729442364183,0.86414,2700.6,2700.5,3.2078]
[1729442364590,0.4938,2700.6,2700.5,3.2078]
[1729442364889,0.86414,2700.6,2700.5,3.2078]
[1729442365291,0.4938,2700.6,2700.5,3.2078]
[1729442367081,0.4938,2700.6,2700.5,3.32363576]
[1729442367285,0.4938,2700.6,2700.5,0.11583576]
[1729442367481,0.4938,2700.6,2700.4,0.37036]
[1729442367687,0.4938,2700.6,2700.5,0.11583646]
[1729442368894,0.4938,2700.6,2700.5,0.11583573]
[1729442369083,0.4938,2700.6,2700.4,3.57816]
[1729442369283,0.4938,2700.6,2700.4,0.37036]
[1729442369496,0.4938,2700.6,2700.4,3.57816]
[1729442370391,0.86414,2700.6,2700.4,3.57816]
[1729442370693,0.4938,2700.6,2700.5,0.37035]
[1729442370885,0.4938,2700.6,2700.5,0.48618656]
[1729442371295,0.86414,2700.6,2700.5,0.11583656]
[1729442371699,0.86414,2700.6,2700.5,0.61713656]
[1729442372197,0.4938,2700.6,2700.5,0.61713656]
[1729442372398,0.4938,2700.6,2700.5,0.5013]
[1729442372691,0.4938,2700.6,2700.5,0.11583508]
[1729442372887,0.4938,2700.6,2700.4,3.57816]
[1729442373081,0.86414,2700.6,2700.4,3.57816]
[1729442373393,0.4938,2700.6,2700.4,3.57816]
[1729442373594,0.4938,2700.6,2700.5,0.48618596]
[1729442373792,0.4938,2700.6,2700.5,0.11583596]
[1729442373989,0.86414,2700.6,2700.4,3.57816]
[1729442374894,0.86414,2700.6,2700.4,3.2078]
[1729442375086,1.37414,2700.6,2700.4,3.2078]
[1729442375286,1.37414,2700.6,2700.4,3.57816]
[1729442379298,1.37414,2700.6,2700.4,3.2078]
[1729442379496,0.524,2700.5,2700.4,3.2078]
[1729442380392,0.524,2700.5,2700.4,3.57817]
[1729442383399,0.524,2700.5,2700.4,0.37037]
[1729442384001,0.524,2700.5,2700.4,3.57817]
[1729442384209,0.524,2700.5,2700.4,3.69400768]
[1729442385499,0.89435,2700.5,2700.4,3.69400768]
[1729442385706,0.89435,2700.5,2700.4,0.48620768]
[1729442385905,0.89435,2700.5,2700.4,3.69400768]
[1729442388806,0.89435,2700.5,2700.4,3.69400706]
[1729442389204,0.89435,2700.5,2700.4,0.48620706]
[1729442389400,0.89435,2700.5,2700.4,3.69400706]
[1729442390115,0.89435,2700.5,2700.4,3.32363706]
[1729442395015,0.89435,2700.5,2699.8,0.37044]
[1729442395016,0.37041,2700.1,2699.8,0.37044]
[1729442395214,0.37041,2700.1,2700.0,3.2078]
[1729442395411,0.37041,2700.1,2700.0,3.32365394]
[1729442395913,0.37041,2700.1,2700.0,3.32366062]
[1729442396418,0.37041,2700.1,2700.0,0.11586796]
[1729442397318,0.37041,2700.1,2699.9,0.5223]
[1729442397813,0.37041,2700.1,2699.9,1.0256]
[1729442398322,0.37041,2700.1,2699.8,1.45012843]
[1729442398323,0.4872,2700.0,2699.8,0.96592843]
[1729442398519,0.85763,2700.0,2699.8,0.96592843]
[1729442399028,0.85763,2700.0,2699.9,0.96592843]
[1729442399029,1.2732,2700.0,2699.9,0.96592843]
[1729442399235,0.4872,2700.0,2699.9,1.85885843]
[1729442400020,0.786,2700.1,2700.0,0.37042]
[1729442400327,0.786,2700.1,2700.0,1.0177]
[1729442401418,1.66799,2700.2,2700.0,1.0177]
[1729442402618,1.2976,2700.2,2700.0,1.0177]
[1729442404328,1.66799,2700.2,2700.0,1.0177]
[1729442404516,1.2976,2700.2,2700.1,0.11585944]
[1729442405730,1.66799,2700.2,2700.1,0.11585944]
[1729442406629,1.66799,2700.2,2700.1,0.1158578]
[1729442406922,1.66799,2700.2,2700.1,0.11585846]
[1729442407122,1.2976,2700.2,2700.1,0.11585846]
[1729442407329,1.2976,2700.2,2700.1,0.11585778]
[1729442407922,1.66799,2700.2,2700.1,0.11585778]
[1729442408733,1.66799,2700.2,2700.0,1.0177]
[1729442408936,1.66799,2700.2,2700.1,0.1158575]
[1729442409130,1.2976,2700.2,2700.1,0.1158575]
[1729442409433,4.2568,2700.5,2700.1,0.1158575]
[1729442409622,0.55085652,2700.6,2700.3,0.37038]
[1729442409623,0.786,2700.4,2700.3,0.37038]
[1729442409821,0.5273,2700.6,2700.4,0.4983]
[1729442410026,0.5273,2700.6,2700.5,1.44899379]
[1729442410027,0.786,2700.6,2700.5,1.44899379]
[1729442410226,0.786,2700.6,2700.5,0.9628]
[1729442410434,0.786,2700.6,2700.5,1.07863766]
[1729442410832,0.786,2700.6,2700.5,1.07863784]
[1729442412721,4.89141,2700.8,2700.5,1.44898784]
[1729442412926,4.5211,2700.8,2700.6,0.11583784]
[1729442413133,4.5211,2700.8,2700.7,0.11583509]
[1729442413134,4.89142,2700.8,2700.7,0.11583509]
[1729442413633,0.37038,2700.3,2700.1,0.96592843]
[1729442413948,0.37038,2700.3,2699.9,1.81932265]
[1729442413949,0.8635,2700.2,2700.0,1.48472843]
[1729442414130,0.8635,2700.2,2700.1,0.11585463]
[1729442414435,0.86349,2700.2,2700.1,0.11585463]
[1729442415933,1.64949,2700.2,2700.1,0.11585463]
[1729442417940,1.2791,2700.2,2700.1,0.11585463]
[1729442418634,1.2791,2700.2,2700.1,0.48626463]
[1729442419731,0.4931,2700.2,2700.1,0.37041]
[1729442419936,0.55050341,2700.6,2700.2,0.37039]
[1729442419937,0.92085341,2700.6,2700.2,0.37039]
[1729442420135,1.3005,2700.5,2700.3,1.81358]
[1729442420639,1.3005,2700.5,2700.3,1.4432]
[1729442423336,1.67085,2700.5,2700.3,1.4432]
[1729442425835,1.3005,2700.5,2700.3,1.4432]
[1729442427041,1.2995,2700.5,2700.3,1.4432]
[1729442427940,1.66985,2700.5,2700.3,1.4432]
[1729442428148,0.5145,2700.5,2700.3,1.4432]
[1729442428344,1.2995,2700.5,2700.3,1.81358]
[1729442429049,0.785,2700.5,2700.4,0.11584224]
[1729442429253,0.785,2700.5,2700.4,0.48621224]
[1729442430038,0.785,2700.5,2700.4,0.94955914]
[1729442430239,0.785,2700.5,2700.4,0.48621224]
[1729442431347,0.785,2700.5,2700.4,0.11584224]
[1729442431741,0.785,2700.5,2700.4,0.48621224]
[1729442434159,0.785,2700.5,2700.4,0.11584224]
[1729442434955,0.785,2700.5,2700.3,1.81357]
[1729442435956,0.785,2700.5,2700.3,2.77949843]
[1729442436776,0.785,2700.5,2700.4,0.37037]
[1729442437266,0.785,2700.5,2700.3,2.77949843]
[1729442437472,0.37034,2700.6,2700.3,2.40912843]
[1729442437768,0.37034,2700.6,2700.3,2.77949843]
[1729442438072,0.785,2700.7,2700.3,2.77949843]
[1729442438269,0.37035,2700.5,2700.3,2.77949843]
[1729442439069,0.37035,2700.6,2700.3,2.77949843]
[1729442439668,0.37035,2700.6,2700.4,0.37036]
[1729442441668,0.37034,2700.6,2700.4,0.37036]
[1729442442669,1.15533,2700.7,2700.4,0.37036]
[1729442442964,0.37034,2700.6,2700.5,0.11583745]
[1729442443563,1.15534,2700.7,2700.5,0.11583745]
[1729442443765,1.15534,2700.7,2700.4,0.37036]
[1729442444069,1.15534,2700.7,2700.5,0.11583665]
[1729442444374,1.15534,2700.7,2700.4,0.37036]
[1729442444575,1.15534,2700.7,2700.5,0.11583657]
[1729442444785,1.15534,2700.7,2700.4,0.37036]
[1729442444968,1.15534,2700.7,2700.5,0.1158364]
[1729442445168,1.15534,2700.7,2700.4,0.37036]
[1729442445369,1.15534,2700.7,2700.5,0.11583676]
[1729442445566,1.15534,2700.7,2700.4,0.37036]
[1729442445776,1.15534,2700.7,2700.5,0.11583645]
[1729442446077,1.15534,2700.7,2700.4,0.37036]
[1729442446371,1.15534,2700.7,2700.5,0.1158364]
[1729442446575,1.15534,2700.7,2700.4,0.37036]
[1729442446774,1.15534,2700.7,2700.5,0.1158361]
[1729442446978,1.15534,2700.7,2700.4,0.37036]
[1729442447475,1.15534,2700.7,2700.5,0.1158363]
[1729442447676,1.15534,2700.7,2700.4,0.37036]
[1729442447878,1.15534,2700.7,2700.5,0.11583651]
[1729442448068,1.15534,2700.7,2700.4,0.37036]
[1729442448269,1.15534,2700.7,2700.5,0.11583622]
[1729442448470,1.15534,2700.7,2700.4,0.37036]
[1729442448670,1.15534,2700.7,2700.5,0.11583621]
[1729442448872,1.15534,2700.7,2700.4,0.37036]
[1729442449379,1.15533,2700.7,2700.5,0.11583668]
[1729442449575,1.15533,2700.7,2700.4,0.37036]
[1729442451079,1.15533,2700.7,2700.3,5.61692843]
[1729442451080,0.785,2700.7,2700.5,0.37034]
[1729442451280,0.785,2700.7,2700.3,4.651]
[1729442451281,0.785,2700.7,2700.6,0.37033]
[1729442451580,3.41197304,2700.8,2700.6,0.37033]
[1729442451875,0.37031,2700.9,2700.7,0.7961]
[1729442451876,2.88477304,2700.9,2700.7,0.7961]
[1729442452078,0.785,2700.9,2700.8,0.75421]
[1729442452277,0.785,2700.9,2700.8,0.3839]
[1729442452477,1.1948,2700.9,2700.8,0.3839]
[1729442452677,0.4098,2700.9,2700.8,0.3839]
[1729442452877,0.4098,2700.9,2700.8,0.75421]
[1729442456079,2.88477304,2701.0,2700.9,0.3703]
[1729442456271,2.88477304,2701.3,2700.9,6.9102]
[1729442456475,6.50977304,2701.4,2700.9,3.2078]
[1729442456673,6.50977304,2701.4,2701.2,0.37025]
[1729442456878,6.50977304,2701.4,2701.3,0.794]
[1729442457491,3.625,2701.4,2701.3,0.794]
[1729442458187,0.4172,2701.4,2701.3,0.794]
[1729442460182,0.4172,2701.4,2701.3,0.4052]
[1729442463690,0.4172,2701.4,2701.3,0.77544]
[1729442466283,2.88477304,2701.7,2701.6,0.3702]
[1729442466489,2.88477304,2701.9,2701.7,0.37019]
[1729442466787,6.57336854,2702.0,2701.8,1.2258]
[1729442466788,2.88477304,2702.0,2701.8,1.2258]
[1729442466986,2.88477304,2702.0,2701.9,0.37016]
[1729442467288,3.76596854,2702.2,2702.0,0.37015]
[1729442467289,2.88477304,2702.1,2702.0,0.37015]
[1729442467480,2.88477304,2702.1,2701.8,1.2258]
[1729442467677,2.88477304,2702.1,2701.9,0.37016]
[1729442468392,3.65529304,2702.2,2701.9,0.37016]
[1729442468589,2.88477304,2702.1,2701.9,0.37016]
[1729442469085,3.65529304,2702.2,2701.9,0.37016]
[1729442470878,4.43929304,2702.2,2701.9,0.37016]
[1729442471294,1.55452,2702.2,2701.9,0.37016]
[1729442473586,0.37014,2702.1,2701.8,1.59597]
[1729442473890,0.37013,2702.1,2701.8,1.59597]
[1729442474090,1.1844,2702.2,2701.8,1.2258]
[1729442474690,0.37015,2702.0,2701.8,1.2258]
[1729442475392,3.7008,2702.0,2701.4,3.2078]
[1729442475585,0.37019,2701.7,2701.4,3.2078]
[1729442475787,0.7683,2701.6,2701.4,3.2078]
[1729442476995,0.3981,2701.6,2701.4,3.2078]
[1729442477192,0.3981,2701.6,2701.4,3.57803]
[1729442477397,0.7683,2701.6,2701.4,3.2078]
[1729442478093,0.3981,2701.6,2701.4,3.2078]
[1729442478295,0.37022,2701.5,2701.4,3.2078]
[1729442481392,0.37022,2701.5,2701.2,1.17125]
[1729442481598,0.37022,2701.5,2701.2,4.37905]
[1729442483696,0.37022,2701.5,2701.2,0.801]
[1729442483897,0.37022,2701.5,2701.3,0.37024]
[1729442484801,0.7996,2701.6,2701.2,0.801]
[1729442485001,0.37024,2701.4,2701.2,1.17125]
[1729442485893,0.37024,2701.4,2701.3,0.37024]
[1729442486692,0.37022,2701.5,2701.3,0.37024]
[1729442489701,1.16981,2701.6,2701.3,0.37024]
[1729442496407,4.05458304,2701.6,2701.3,0.37024]
[1729442499901,0.37022,2701.5,2701.2,4.37904]
[1729442500303,3.25499304,2701.5,2701.2,4.37904]
[1729442500499,3.25499304,2701.5,2701.3,0.37024]
[1729442500500,2.88477304,2701.5,2701.3,0.37024]
[1729442502614,0.37023,2701.4,2701.2,4.0088]
[1729442502818,2.88477304,2701.5,2701.2,4.0088]
[1729442503007,0.37024,2701.3,2701.2,4.0088]
[1729442503308,2.88477304,2701.3,2700.9,3.57809]
[1729442503612,0.37027,2701.1,2700.9,3.2078]
[1729442504018,0.37027,2701.1,2700.9,3.5781]
[1729442506112,0.37027,2701.1,2700.9,0.3703]
[1729442506819,0.4141,2701.2,2700.9,0.3703]
[1729442507022,0.37028,2701.0,2700.9,0.3703]
[1729442508717,0.37028,2701.0,2700.8,2.55492843]
[1729442509418,0.3703,2700.9,2700.8,2.55492843]
[1729442511022,0.37029,2701.0,2700.9,0.37029]
[1729442517421,0.37029,2701.0,2700.9,1.33621843]
[1729442517624,0.37029,2701.0,2700.9,1.45203005]
[1729442517822,0.37029,2701.0,2700.9,0.48610162]
[1729442518325,0.37029,2701.0,2700.9,1.45203005]
[1729442518526,0.37029,2701.0,2700.9,0.48610162]
[1729442519421,0.37029,2701.0,2700.9,0.37029]
[1729442519622,0.37029,2701.0,2700.9,0.48610242]
[1729442519827,0.37029,2701.0,2700.9,0.94935193]
[1729442520031,0.37029,2701.0,2700.9,0.94935116]
[1729442520331,0.37029,2701.0,2700.9,1.1346509]
[1729442521524,0.37028,2701.1,2701.0,0.37028]
[1729442521826,0.37028,2701.1,2701.0,0.48609223]
[1729442522125,0.37028,2701.1,2701.0,0.48609201]
[1729442524621,0.37028,2701.1,2701.0,0.37028]
[1729442525428,0.37028,2701.1,2701.0,1.33620843]
[1729442525733,0.37028,2701.1,2701.0,0.96592843]
[1729442525928,0.4141,2701.2,2700.9,0.96592843]
[1729442526233,0.4141,2701.2,2701.0,1.33620843]
[1729442526631,0.37027,2701.1,2701.0,1.33620843]
[1729442529537,0.78437,2701.2,2701.0,1.33620843]
[1729442529937,0.78437,2701.2,2701.1,0.37027]
[1729442530139,0.78437,2701.2,2701.0,1.33620843]
[1729442531444,0.37027,2701.1,2701.0,1.33620843]
[1729442532447,0.4141,2701.2,2701.0,1.33620843]
[1729442532651,0.78436,2701.2,2701.0,1.33620843]
[1729442533550,0.78436,2701.2,2701.0,0.37028]
[1729442534154,6.09257304,2701.7,2700.9,0.96592843]
[1729442534449,3.36556854,2701.8,2701.4,0.37022]
[1729442534450,1.55641,2701.6,2701.4,0.37022]
[1729442534652,1.1862,2701.6,2701.5,1.158]
[1729442535049,1.1862,2701.6,2701.5,1.52822]
[1729442535443,1.1862,2701.6,2701.5,1.158]
[1729442535846,1.5564,2701.6,2701.5,1.158]
[1729442536349,1.1862,2701.6,2701.1,4.17372843]
[1729442536551,0.37022,2701.5,2701.2,1.64995528]
[1729442536751,0.37022,2701.5,2701.2,1.53415]
[1729442538154,1.55641,2701.6,2701.3,0.37024]
[1729442540455,3.84636405,2701.5,2701.3,0.37024]
[1729442540855,4.21658405,2701.5,2701.2,1.1639]
[1729442541056,3.3818693,2701.3,2701.2,1.53416]
[1729442547767,3.3818693,2701.3,2701.2,1.83524976]
[1729442547966,3.3818693,2701.3,2701.2,2.29845734]
[1729442548165,3.3818693,2701.3,2701.2,1.99736758]
[1729442548365,3.3818693,2701.3,2701.2,2.29845286]
[1729442548556,4.21658405,2701.5,2701.2,3.26438129]
[1729442548557,0.37022,2701.5,2701.2,3.26438129]
[1729442548760,0.37022,2701.5,2701.3,0.11580203]
[1729442549069,0.37022,2701.5,2701.4,0.11580203]
[1729442550268,1.55641,2701.6,2701.4,0.11580203]
[1729442550572,1.55641,2701.6,2701.3,0.37023]
[1729442550772,0.37022,2701.5,2701.4,0.11580161]
[1729442551772,1.55641,2701.6,2701.4,0.11580161]
[1729442551972,1.55641,2701.6,2701.3,0.37024]
[1729442552168,0.37022,2701.5,2701.4,0.1158011]
[1729442552365,0.37022,2701.5,2701.4,0.11580116]
[1729442553365,1.1862,2701.6,2701.4,0.11580116]
[1729442553564,1.55641,2701.6,2701.3,0.37024]
[1729442553763,1.55641,2701.6,2701.4,0.11580088]
[1729442553970,1.1862,2701.6,2701.2,2.12982843]
[1729442554164,0.37022,2701.5,2701.3,0.11580132]
[1729442554363,0.37022,2701.5,2701.4,0.11580132]
[1729442554774,0.37022,2701.5,2701.2,2.50007843]
[1729442555569,2.89885694,2701.3,2701.2,1.53415]
[1729442561273,2.89885694,2701.3,2701.2,1.1639]
[1729442561782,2.89885694,2701.3,2701.2,1.53416]
[1729442562082,2.89885694,2701.3,2701.2,1.99736898]
[1729442562977,2.89885694,2701.3,2701.2,2.29845356]
[1729442563373,2.89885694,2701.3,2701.2,2.2984574]
[1729442563673,0.37023,2701.4,2701.2,4.52991177]
[1729442563869,0.37023,2701.4,2701.3,0.11580263]
[1729442565278,0.37023,2701.4,2701.3,0.96592843]
[1729442565480,0.37023,2701.4,2701.3,1.08173081]
[1729442566569,0.37023,2701.4,2701.3,0.11580238]
[1729442567172,0.37023,2701.4,2701.3,0.1158029]
[1729442567475,0.4032,2701.6,2701.4,0.37023]
[1729442567675,0.77341,2701.6,2701.5,0.5326029]
[1729442568782,0.4032,2701.6,2701.5,0.5326029]
[1729442569378,0.7734,2701.6,2701.5,0.5326029]
[1729442570179,0.4032,2701.6,2701.5,0.5326029]
[1729442571591,0.7734,2701.6,2701.5,0.5326029]
[1729442572288,0.4032,2701.6,2701.5,0.5326029]
[1729442572788,0.7734,2701.6,2701.5,0.5326029]
[1729442573581,0.7734,2701.6,2701.5,0.1158029]
[1729442573790,0.7734,2701.6,2701.3,0.75683]
[1729442574090,2.89817921,2701.5,2701.4,0.48602624]
[1729442574689,2.89817921,2701.5,2701.4,0.37023]
[1729442574997,2.89817921,2701.5,2701.4,0.48602503]
[1729442575789,3.26839921,2701.5,2701.4,0.11579503]
[1729442576989,3.26839921,2701.5,2701.4,0.48602503]
[1729442577487,3.26839921,2701.5,2701.4,0.11579503]
[1729442578194,3.26839921,2701.5,2701.3,0.75683]
[1729442578600,3.26839921,2701.5,2701.4,0.37023]
[1729442578795,0.37022,2701.5,2701.4,1.33615843]
[1729442579897,0.37022,2701.5,2701.4,0.96592843]
[1729442580793,0.37022,2701.5,2701.3,1.83549265]
[1729442580794,0.37023,2701.4,2701.3,0.96592843]
[1729442581290,0.37024,2701.3,2701.2,4.94692843]
[1729442581497,0.79284,2701.3,2701.2,4.94692843]
[1729442583692,0.79284,2701.3,2701.2,1.73912843]
[1729442584196,0.79284,2701.3,2701.2,0.96592843]
[1729442585303,0.79284,2701.3,2701.2,1.08173413]
[1729442585502,0.79284,2701.3,2701.2,1.54496381]
[1729442585798,0.79284,2701.3,2701.2,0.57903538]
[1729442585995,3.69101921,2701.3,2701.2,0.1158057]
[1729442586498,3.69101921,2701.3,2700.8,4.0094]
[1729442586499,3.8044693,2701.3,2700.8,4.0094]
[1729442586693,0.37029,2701.0,2700.9,0.76438386]
[1729442587398,0.37029,2701.0,2700.8,4.0094]
[1729442587696,2.89802221,2701.2,2700.8,4.0094]
[1729442587697,0.7843,2700.9,2700.8,4.0094]
[1729442587903,0.7843,2700.9,2700.8,4.77378507]
[1729442588205,0.414,2700.9,2700.8,5.14409507]
[1729442588399,0.7843,2700.9,2700.8,5.14409507]
[1729442588603,0.7843,2700.9,2700.8,6.23272355]
[1729442588897,0.7843,2700.9,2700.8,5.25989919]
[1729442589200,0.7843,2700.9,2700.8,5.14407345]
[1729442592104,0.7843,2700.9,2700.8,5.37570235]
[1729442592607,0.7843,2700.9,2700.8,4.9124595]
[1729442592795,0.7843,2700.9,2700.8,6.11693665]
[1729442592996,0.7843,2700.9,2700.8,6.23275103]
[1729442593393,0.7843,2700.9,2700.8,2.28373432]
[1729442593804,0.7843,2700.9,2700.8,4.99667667]
[1729442595504,0.7843,2700.9,2700.8,4.88086229]
[1729442595691,0.7843,2700.9,2700.8,4.62636731]
[1729442595892,0.7843,2700.9,2700.8,4.63420356]
[1729442596094,0.7843,2700.9,2700.8,3.52237886]
[1729442596294,0.7843,2700.9,2700.8,4.17077106]
[1729442596495,0.7843,2700.9,2700.8,4.63403131]
[1729442596803,0.7843,2700.9,2700.8,4.40239375]
[1729442597297,0.7843,2700.9,2700.8,5.00422554]
[1729442598304,0.7843,2700.9,2700.8,4.7725958]
[1729442599709,0.7843,2700.9,2700.8,4.30934051]
[1729442600208,0.7843,2700.9,2700.8,3.89240646]
[1729442600803,0.7843,2700.9,2700.8,2.43578525]
[1729442601210,0.7843,2700.9,2700.8,2.43555579]
[1729442602121,0.7843,2700.9,2700.8,3.892177]
[1729442602408,0.7843,2700.9,2700.8,2.43555579]
[1729442602800,0.414,2700.9,2700.8,2.43555579]
[1729442602999,0.414,2700.9,2700.8,3.892177]
[1729442604416,0.414,2700.9,2700.8,2.43555579]
[1729442605814,0.414,2700.9,2700.8,3.892177]
[1729442606007,0.414,2700.9,2700.8,2.62853121]
[1729442606209,0.414,2700.9,2700.8,3.89151616]
[1729442606411,0.414,2700.9,2700.8,2.43489495]
[1729442607617,0.414,2700.9,2700.8,4.65587133]
[1729442607809,0.414,2700.9,2700.8,3.19925012]
[1729442608207,0.414,2700.9,2700.8,6.40705012]
[1729442608927,0.414,2700.9,2700.8,5.14406733]
[1729442610819,0.414,2700.9,2700.8,5.14406561]
[1729442614411,0.414,2700.9,2700.8,1.635156]
[1729442614612,0.414,2700.9,2700.8,1.93626538]
[1729442614918,0.414,2700.9,2700.8,4.68081938]
[1729442615517,0.414,2700.9,2700.8,4.37971]
[1729442615919,0.414,2700.9,2700.8,6.61595777]
[1729442616310,0.37028,2701.1,2701.0,0.37028]
[1729442617720,1.1768,2701.3,2700.9,0.9709117]
[1729442617919,0.37027,2701.2,2701.1,0.37026]
[1729442619120,0.37027,2701.2,2701.0,0.3912]
[1729442619425,0.37027,2701.2,2701.1,0.37027]
[1729442619625,0.37027,2701.2,2701.0,0.76147]
[1729442619814,0.37027,2701.2,2701.0,0.3912]
[1729442620114,1.54705,2701.3,2701.1,0.37027]
[1729442620320,0.37026,2701.2,2701.0,0.76147]
[1729442620520,1.54705,2701.3,2701.2,0.37026]
[1729442620715,1.54705,2701.3,2701.1,0.37026]
[1729442624339,1.54705,2701.3,2701.2,0.11580915]
[1729442624532,1.54705,2701.3,2701.1,0.37026]
[1729442624935,1.1768,2701.3,2701.2,0.37026]
[1729442625237,1.1768,2701.3,2701.2,0.48606765]